[Event "FIDE WYCC Open U14 2023"]
[Site "Montesilvano"]
[Date "2023.11.20"]
[Round "7.22"]
[White "Boci, Mateo"]
[Black "George Micheal, Kevin"]
[Result "1/2-1/2"]
[ECO "B53"]
[WhiteElo "1832"]
[BlackElo "2317"]
[Annotator "RC"]
[PlyCount "70"]
[EventDate "2023.11.13"]
[EventType "swiss"]
[EventCountry "ITA"]
[SourceTitle "playchess.com"]
[Source "ChessBase"]
[SourceQuality "1"]
[TimeControl "40/5400+30:1800+30"]

1. e4 {[%emt 0:00:16]} c5 {[%emt 0:01:03]} 2. Nf3 {[%emt 0:00:41]} d6 {[%emt 0:00:09]} 3. d4 {[%emt 0:00:10]} cxd4 {[%emt 0:00:14]} 4. Qxd4 {[%emt 0:00:10]} Nc6 {[%emt 0:01:04]} 5. Bb5 {[%emt 0:00:33]} Bd7 {[%emt 0:00:47]} 6. Qd3 {[%emt 0:02:03]} Nf6 {[%emt 0:01:52]} 7. c4 {[%emt 0:01:23]} g6 {[%emt 0:01:19]} 8. O-O {[%emt 0:01:22]} Bg7 {[%emt 0:00:11]} 9. Nc3 {[%emt 0:01:28]} O-O {[%emt 0:00:21]} 10. Rd1 {[%emt 0:02:16]} Rc8 {[%emt 0:09:25]} 11. h3 {[%emt 0:05:59]} a6 {[%emt 0:07:10]} 12. Bxc6 {[%emt 0:00:38]} Bxc6 {[%emt 0:00:25]} 13. Be3 {[%emt 0:04:40]} Nd7 {[%emt 0:04:42]} 14. Nd4 {[%emt 0:07:54]} Ne5 {[%emt 0:15:30]} 15. Qe2 {[%emt 0:00:44]} Bd7 {[%emt 0:00:48]} 16. b3 {[%emt 0:00:45]} b5 {[%emt 0:03:25]} 17. f4 {[%emt 0:02:11]} Nc6 {[%emt 0:00:35]} 18. Rac1 {[%emt 0:02:36]} bxc4 {[%emt 0:12:07]} 19. bxc4 {[%emt 0:00:17]} Nxd4 {[%emt 0:00:43]} 20. Bxd4 {[%emt 0:00:54]} Be6 {[%emt 0:00:30]} 21. Nd5 {[%emt 0:04:07]} Bxd5 {[%emt 0:06:01]} 22. exd5 {[%emt 0:00:46]} Bxd4+ {[%emt 0:00:23]} 23. Rxd4 {[%emt 0:00:02]} Qb6 {[%emt 0:00:24]} 24. Rcd1 {[%emt 0:01:41]} Rc7 {[%emt 0:02:48]} 25. Kh1 {[%emt 0:01:20]} Rb8 {[%emt 0:05:00]} 26. Re4 {[%emt 0:04:42]} Qb2 {[%emt 0:02:54]} 27. Rd2 {[%emt 0:01:29]} Qf6 {[%emt 0:00:25]} 28. Kh2 {[%emt 0:01:05]} Rb1 {[%emt 0:01:43]} 29. Rd1 {[%emt 0:09:22]} Rb2 {[%emt 0:01:59]} 30. Rd2 {[%emt 0:00:12]} Rcb7 {[%emt 0:01:15]} 31. Qe1 {[%emt 0:06:54]} Qf5 {[%emt 0:05:05]} 32. Rxb2 {[%emt 0:01:29]} Rxb2 {[%emt 0:00:07]} 33. Qe3 {[%emt 0:00:15]} Rxa2 {[%emt 0:07:31]} 34. Rxe7 {[%emt 0:00:43]} Qc2 {[%emt 0:00:55]} 35. Qf3 {[%emt 0:04:41]} Qf5 {[%emt 0:03:11]} 1/2-1/2

[Event "FIDE WYCC Open U14 2023"]
[Site "Montesilvano"]
[Date "2023.11.20"]
[Round "7.23"]
[White "Ji, Jiahao Eric"]
[Black "Uskov, Artem"]
[Result "0-1"]
[ECO "B54"]
[WhiteElo "2045"]
[BlackElo "2380"]
[Annotator "RC"]
[PlyCount "74"]
[EventDate "2023.11.13"]
[EventType "swiss"]
[EventCountry "ITA"]
[SourceTitle "playchess.com"]
[Source "ChessBase"]
[SourceQuality "1"]
[TimeControl "40/5400+30:1800+30"]

1. e4 {[%emt 0:00:03]} c5 {[%emt 0:06:42]} 2. Nf3 {[%emt 0:00:06]} d6 {[%emt 0:00:07]} 3. d4 {[%emt 0:00:03]} cxd4 {[%emt 0:00:05]} 4. Nxd4 {[%emt 0:00:05]} Nf6 {[%emt 0:00:10]} 5. f3 {[%emt 0:00:05]} e5 {[%emt 0:00:21]} 6. Nb3 {[%emt 0:00:05]} a5 {[%emt 0:00:02]} 7. Bb5+ {[%emt 0:00:21]} Nc6 {[%emt 0:00:47]} 8. Nc3 {[%emt 0:00:14]} Be6 {[%emt 0:03:31]} 9. Be3 {[%emt 0:00:46]} Nd7 {[%emt 0:03:41]} 10. Qe2 {[%emt 0:04:53]} Be7 {[%emt 0:03:00]} 11. O-O {[%emt 0:01:51]} O-O {[%emt 0:00:30]} 12. Rfd1 {[%emt 0:12:32]} Qc8 {[%emt 0:24:10]} 13. Nd2 {[%emt 0:17:46]} Nd4 {[%emt 0:08:22]} 14. Bxd4 {[%emt 0:03:02]} exd4 {[%emt 0:00:06]} 15. Nd5 {[%emt 0:02:51]} Bxd5 {[%emt 0:09:07]} 16. exd5 {[%emt 0:00:00]} Bf6 {[%emt 0:02:44]} 17. Ne4 {[%emt 0:13:59]} Be5 {[%emt 0:01:03]} 18. f4 {[%emt 0:13:13]} Bxf4 {[%emt 0:01:22]} 19. Qg4 {[%emt 0:00:58]} Be3+ {[%emt 0:00:16]} 20. Kh1 {[%emt 0:00:21]} Ne5 {[%emt 0:02:19]} 21. Qe2 {[%emt 0:03:37]} Qd8 {[%emt 0:06:30]} 22. c3 {[%emt 0:02:12]} Qh4 {[%emt 0:00:16]} 23. Rxd4 {[%emt 0:08:34]} Bxd4 {[%emt 0:00:54]} 24. cxd4 {[%emt 0:00:06]} Ng4 {[%emt 0:02:28]} 25. g3 {[%emt 0:02:24]} Qh5 {[%emt 0:00:30]} 26. Bd7 {[%emt 0:04:51]} Qxd5 {[%emt 0:00:14]} 27. Bxg4 {[%emt 0:02:22]} f5 {[%emt 0:00:08]} 28. Bf3 {[%emt 0:00:34]} fxe4 {[%emt 0:00:08]} 29. Qxe4 {[%emt 0:00:10]} Qxe4 {[%emt 0:00:46]} 30. Bxe4 {[%emt 0:00:02]} Rf2 {[%emt 0:00:50]} 31. Bxb7 {[%emt 0:00:18]} Raf8 {[%emt 0:02:03]} 32. Kg1 {[%emt 0:00:37]} Rxb2 {[%emt 0:00:25]} 33. Bd5+ {[%emt 0:00:20]} Kh8 {[%emt 0:00:04]} 34. Rc1 {[%emt 0:00:06]} Rd2 {[%emt 0:00:11]} 35. Rc6 {[%emt 0:01:18]} Rxd4 {[%emt 0:00:25]} 36. Rxd6 {[%emt 0:00:05]} Rd2 {[%emt 0:00:03]} 37. Rd7 {[%emt 0:00:20]} Rb8 {[%emt 0:00:09]} 0-1

[Event "FIDE WYCC Open U14 2023"]
[Site "Montesilvano"]
[Date "2023.11.20"]
[Round "7.24"]
[White "Lissillour, Baptiste"]
[Black "Kazantzoglou, Stefanos"]
[Result "1-0"]
[ECO "C78"]
[WhiteElo "2298"]
[BlackElo "2031"]
[Annotator "RC"]
[PlyCount "113"]
[EventDate "2023.11.13"]
[EventType "swiss"]
[EventCountry "ITA"]
[SourceTitle "playchess.com"]
[Source "ChessBase"]
[SourceQuality "1"]
[TimeControl "40/5400+30:1800+30"]

1. e4 {[%emt 0:00:01]} e5 {[%emt 0:00:05]} 2. Nf3 {[%emt 0:00:04]} Nc6 {[%emt 0:00:07]} 3. Bb5 {[%emt 0:00:05]} a6 {[%emt 0:00:03]} 4. Ba4 {[%emt 0:00:05]} Nf6 {[%emt 0:00:06]} 5. O-O {[%emt 0:00:05]} b5 {[%emt 0:00:12]} 6. Bb3 {[%emt 0:00:05]} Bc5 {[%emt 0:00:05]} 7. a4 {[%emt 0:00:05]} Rb8 {[%emt 0:00:03]} 8. c3 {[%emt 0:00:07]} d6 {[%emt 0:00:04]} 9. d4 {[%emt 0:00:05]} Bb6 {[%emt 0:00:02]} 10. a5 {[%emt 0:00:05]} Ba7 {[%emt 0:00:05]} 11. h3 {[%emt 0:00:05]} Bb7 {[%emt 0:00:05]} 12. Re1 {[%emt 0:12:14]} O-O {[%emt 0:02:02]} 13. Be3 {[%emt 0:02:17]} exd4 {[%emt 0:06:32]} 14. cxd4 {[%emt 0:00:54]} Ne7 {[%emt 0:06:12]} 15. Nc3 {[%emt 0:13:55]} b4 {[%emt 0:14:43]} 16. e5 {[%emt 0:01:11]} Bxf3 {[%emt 0:00:44]} 17. gxf3 {[%emt 0:07:03]} bxc3 {[%emt 0:06:16]} 18. exf6 {[%emt 0:00:06]} Ng6 {[%emt 0:04:44]} 19. fxg7 {[%emt 0:01:52]} Re8 {[%emt 0:01:13]} 20. bxc3 {[%emt 0:00:36]} Qh4 {[%emt 0:00:21]} 21. Kg2 {[%emt 0:09:13]} Qh5 {[%emt 0:04:25]} 22. f4 {[%emt 0:14:59]} Nh4+ {[%emt 0:28:08]} 23. Kg3 {[%emt 0:02:00]} Nf5+ {[%emt 0:00:09]} 24. Kh2 {[%emt 0:00:56]} Qh4 {[%emt 0:00:28]} 25. Ra2 {[%emt 0:14:17]} c6 {[%emt 0:05:08]} 26. Bc4 {[%emt 0:01:45]} d5 {[%emt 0:04:06]} 27. Bxa6 {[%emt 0:01:30]} Rxe3 {[%emt 0:01:25]} 28. fxe3 {[%emt 0:07:38]} Qg3+ {[%emt 0:00:04]} 29. Kh1 {[%emt 0:00:04]} Re8 {[%emt 0:01:48]} 30. Rh2 {[%emt 0:01:42]} Bb8 {[%emt 0:00:43]} 31. Rg1 {[%emt 0:07:21]} Qxe3 {[%emt 0:00:36]} 32. Qe2 {[%emt 0:03:06]} Bxf4 {[%emt 0:01:17]} 33. Qxe3 {[%emt 0:00:27]} Rxe3 {[%emt 0:00:01]} 34. Rf2 {[%emt 0:00:58]} Rxh3+ {[%emt 0:00:31]} 35. Kg2 {[%emt 0:00:01]} Rh2+ {[%emt 0:00:20]} 36. Kf1 {[%emt 0:00:28]} Rxf2+ {[%emt 0:04:00]} 37. Kxf2 {[%emt 0:00:01]} Be3+ {[%emt 0:00:06]} 38. Kf1 {[%emt 0:00:27]} Bxg1 {[%emt 0:00:05]} 39. Kxg1 {[%emt 0:00:52]} Nd6 {[%emt 0:01:31]} 40. Bb7 {[%emt 0:00:00]} Kxg7 {[%emt 0:00:00]} 41. a6 {[%emt 0:02:57]} Nb5 {[%emt 0:05:46]} 42. Bxc6 {[%emt 0:00:10]} Na7 {[%emt 0:00:04]} 43. Bxd5 {[%emt 0:00:07]} Kf6 {[%emt 0:01:44]} 44. Kf2 {[%emt 0:01:08]} Ke7 {[%emt 0:01:30]} 45. Ke3 {[%emt 0:01:14]} f6 {[%emt 0:00:35]} 46. Kf4 {[%emt 0:00:17]} Kd6 {[%emt 0:00:10]} 47. Bb7 {[%emt 0:01:35]} Kc7 {[%emt 0:04:47]} 48. c4 {[%emt 0:00:56]} Kd7 {[%emt 0:00:54]} 49. Kf5 {[%emt 0:01:07]} Ke7 {[%emt 0:00:50]} 50. Bf3 {[%emt 0:00:15]} Nc8 {[%emt 0:00:20]} 51. c5 {[%emt 0:00:12]} Na7 {[%emt 0:00:15]} 52. d5 {[%emt 0:00:25]} h6 {[%emt 0:02:46]} 53. d6+ {[%emt 0:00:53]} Kd7 {[%emt 0:00:07]} 54. Kxf6 {[%emt 0:00:14]} h5 {[%emt 0:00:07]} 55. Kg5 {[%emt 0:00:22]} Kc8 {[%emt 0:01:21]} 56. Kxh5 {[%emt 0:01:25]} Kb8 {[%emt 0:00:04]} 57. c6 {[%emt 0:00:33]} 1-0

[Event "FIDE WYCC Open U14 2023"]
[Site "Montesilvano"]
[Date "2023.11.20"]
[Round "7.25"]
[White "Sommer, Justus"]
[Black "Zienkiewicz, Jan"]
[Result "*"]
[ECO "C88"]
[WhiteElo "2013"]
[BlackElo "2296"]
[Annotator "RC"]
[PlyCount "66"]
[EventDate "2023.11.13"]
[EventType "swiss"]
[EventCountry "ITA"]
[SourceTitle "playchess.com"]
[Source "ChessBase"]
[SourceQuality "1"]
[TimeControl "40/5400+30:1800+30"]

1. e4 {[%emt 0:00:04]} e5 {[%emt 0:00:28]} 2. Nf3 {[%emt 0:00:11]} Nc6 {[%emt 0:00:04]} 3. Bb5 {[%emt 0:00:12]} a6 {[%emt 0:00:21]} 4. Ba4 {[%emt 0:00:08]} Nf6 {[%emt 0:00:03]} 5. O-O {[%emt 0:00:23]} Be7 {[%emt 0:00:10]} 6. Re1 {[%emt 0:00:34]} b5 {[%emt 0:00:10]} 7. Bb3 {[%emt 0:00:10]} O-O {[%emt 0:00:28]} 8. d4 {[%emt 0:00:42]} Nxd4 {[%emt 0:00:38]} 9. Nxd4 {[%emt 0:00:16]} exd4 {[%emt 0:00:12]} 10. e5 {[%emt 0:00:27]} Ne8 {[%emt 0:01:18]} 11. Qf3 {[%emt 0:00:53]} Rb8 {[%emt 0:03:04]} 12. c3 {[%emt 0:01:29]} c5 {[%emt 0:18:28]} 13. cxd4 {[%emt 0:00:33]} c4 {[%emt 0:00:30]} 14. Bc2 {[%emt 0:00:24]} d5 {[%emt 0:00:06]} 15. Nc3 {[%emt 0:10:26]} Nc7 {[%emt 0:03:46]} 16. Bf4 {[%emt 0:07:19]} b4 {[%emt 0:05:16]} 17. Ne2 {[%emt 0:02:06]} Be6 {[%emt 0:13:47]} 18. Ng3 {[%emt 0:07:18]} Qd7 {[%emt 0:08:17]} 19. Qh5 {[%emt 0:13:21]} g6 {[%emt 0:02:54]} 20. Qh6 {[%emt 0:07:11]} Rb6 {[%emt 0:19:54]} 21. Nh5 {[%emt 0:15:10]} Ne8 {[%emt 0:00:39]} 22. Bg5 {[%emt 0:01:06]} Bg4 {[%emt 0:06:42]} 23. Bxe7 {[%emt 0:04:54]} Qxe7 {[%emt 0:01:00]} 24. Nf4 {[%emt 0:00:22]} Be6 {[%emt 0:02:14]} 25. Re3 {[%emt 0:02:23]} Ng7 {[%emt 0:06:44]} 26. g4 {[%emt 0:08:33]} f5 {[%emt 0:02:57]} 27. Rh3 {[%emt 0:01:04]} Kf7 {[%emt 0:02:42]} 28. gxf5 {[%emt 0:04:32]} gxf5 {[%emt 0:00:21]} 29. Rg3 {[%emt 0:02:48]} Rg8 {[%emt 0:00:31]} 30. Kh1 {[%emt 0:03:19]} Ne8 {[%emt 0:01:00]} 31. Qxh7+ {[%emt 0:00:46]} Kf8 {[%emt 0:00:22]} 32. Ng6+ {[%emt 0:02:01]} Rxg6 {[%emt 0:00:05]} 33. Qxg6 {[%emt 0:00:07]} Qf7 {[%emt 0:00:42]} *

[Event "FIDE WYCC Open U14 2023"]
[Site "Montesilvano"]
[Date "2023.11.20"]
[Round "7.26"]
[White "Georgiadis, Anastasios"]
[Black "Averin, Nikolay"]
[Result "1-0"]
[ECO "D35"]
[WhiteElo "2001"]
[BlackElo "2270"]
[Annotator "RC"]
[PlyCount "53"]
[EventDate "2023.11.13"]
[EventType "swiss"]
[EventCountry "ITA"]
[SourceTitle "playchess.com"]
[Source "ChessBase"]
[SourceQuality "1"]
[TimeControl "40/5400+30:1800+30"]

1. d4 {[%emt 0:00:03]} d5 {[%emt 0:07:18]} 2. c4 {[%emt 0:00:06]} e6 {[%emt 0:00:04]} 3. Nc3 {[%emt 0:00:04]} Nf6 {[%emt 0:00:04]} 4. cxd5 {[%emt 0:00:05]} exd5 {[%emt 0:00:03]} 5. Bg5 {[%emt 0:00:08]} c6 {[%emt 0:00:02]} 6. e3 {[%emt 0:00:06]} Bd6 {[%emt 0:00:05]} 7. Bd3 {[%emt 0:00:09]} Nbd7 {[%emt 0:00:04]} 8. Qc2 {[%emt 0:00:11]} Nf8 {[%emt 0:00:13]} 9. O-O-O {[%emt 0:00:51]} Ng6 {[%emt 0:05:51]} 10. Nge2 {[%emt 0:00:50]} Be6 {[%emt 0:25:34]} 11. f3 {[%emt 0:13:10]} Be7 {[%emt 0:34:25]} 12. Ng3 {[%emt 0:11:06]} Nd7 {[%emt 0:09:01]} 13. Bxe7 Nxe7 {[%emt 0:03:46]} 14. Nh5 {[%emt 0:05:20]} Kf8 {[%emt 0:01:18]} 15. Nf4 {[%emt 0:01:07]} g6 {[%emt 0:06:29]} 16. Nxe6+ {[%emt 0:02:36]} fxe6 {[%emt 0:00:13]} 17. h4 {[%emt 0:01:42]} Qe8 {[%emt 0:01:39]} 18. h5 {[%emt 0:03:19]} Kg7 {[%emt 0:01:10]} 19. Rh3 {[%emt 0:02:34]} gxh5 {[%emt 0:01:31]} 20. Rdh1 {[%emt 0:01:49]} Nf8 {[%emt 0:01:08]} 21. Rxh5 {[%emt 0:01:36]} Nfg6 {[%emt 0:00:05]} 22. g4 {[%emt 0:00:54]} Qf7 {[%emt 0:00:52]} 23. f4 {[%emt 0:00:44]} Ng8 {[%emt 0:00:33]} 24. Bxg6 {[%emt 0:01:03]} Qxg6 {[%emt 0:00:07]} 25. Rg5 {[%emt 0:00:04]} Ne7 {[%emt 0:00:48]} 26. Rxg6+ {[%emt 0:00:11]} hxg6 {[%emt 0:00:09]} 27. Rxh8 {[%emt 0:00:49]} 1-0

[Event "FIDE WYCC Open U14 2023"]
[Site "Montesilvano"]
[Date "2023.11.20"]
[Round "7.27"]
[White "Dhruva Thota"]
[Black "Demirtas, Alper"]
[Result "1-0"]
[ECO "C02"]
[WhiteElo "2192"]
[BlackElo "2034"]
[Annotator "RC"]
[PlyCount "147"]
[EventDate "2023.11.13"]
[EventType "swiss"]
[EventCountry "ITA"]
[SourceTitle "playchess.com"]
[Source "ChessBase"]
[SourceQuality "1"]
[TimeControl "40/5400+30:1800+30"]

1. e4 {[%emt 0:00:02]} e6 {[%emt 0:00:03]} 2. d4 {[%emt 0:00:07]} d5 {[%emt 0:00:03]} 3. e5 {[%emt 0:00:53]} c5 {[%emt 0:00:02]} 4. c3 {[%emt 0:00:10]} Nc6 {[%emt 0:00:05]} 5. Nf3 {[%emt 0:00:07]} Qb6 {[%emt 0:00:03]} 6. a3 {[%emt 0:00:22]} c4 {[%emt 0:00:02]} 7. Nbd2 {[%emt 0:00:16]} Na5 {[%emt 0:00:02]} 8. Rb1 {[%emt 0:00:17]} Bd7 {[%emt 0:00:10]} 9. h4 {[%emt 0:00:05]} Ne7 {[%emt 0:06:23]} 10. h5 {[%emt 0:00:11]} h6 {[%emt 0:01:04]} 11. Be2 {[%emt 0:00:12]} Qc7 {[%emt 0:02:45]} 12. Nf1 {[%emt 0:00:11]} Nc8 {[%emt 0:01:39]} 13. Bf4 {[%emt 0:00:10]} Nb6 {[%emt 0:01:23]} 14. Qd2 {[%emt 0:00:15]} O-O-O {[%emt 0:06:17]} 15. Bg3 {[%emt 0:00:31]} Ba4 {[%emt 0:02:19]} 16. Bh4 {[%emt 0:05:02]} Re8 {[%emt 0:03:50]} 17. Bd1 {[%emt 0:01:07]} Qd7 {[%emt 0:10:34]} 18. Ne3 {[%emt 0:12:28]} Kb8 {[%emt 0:06:34]} 19. O-O {[%emt 0:04:02]} Rc8 {[%emt 0:05:49]} 20. Ne1 {[%emt 0:03:26]} Be7 {[%emt 0:06:33]} 21. Bg3 {[%emt 0:05:44]} Bxd1 {[%emt 0:09:42]} 22. Rxd1 {[%emt 0:09:22]} Nb3 {[%emt 0:03:15]} 23. Qe2 {[%emt 0:08:48]} Ka8 {[%emt 0:01:34]} 24. f4 {[%emt 0:04:24]} g6 {[%emt 0:02:16]} 25. hxg6 {[%emt 0:01:28]} fxg6 {[%emt 0:00:02]} 26. Nf3 {[%emt 0:08:06]} Rcf8 {[%emt 0:05:15]} 27. Rde1 {[%emt 0:04:53]} Bd8 {[%emt 0:01:34]} 28. Ng4 {[%emt 0:02:40]} Qg7 {[%emt 0:07:07]} 29. Qe3 {[%emt 0:06:25]} Nc8 {[%emt 0:05:29]} 30. Bh4 {[%emt 0:04:16]} Bxh4 {[%emt 0:04:04]} 31. Nxh4 {[%emt 0:00:02]} Ne7 {[%emt 0:01:37]} 32. Nf6 {[%emt 0:03:02]} Ng8 {[%emt 0:03:04]} 33. Ng4 {[%emt 0:04:27]} Ne7 {[%emt 0:01:20]} 34. Rf3 {[%emt 0:01:12]} g5 {[%emt 0:01:44]} 35. fxg5 {[%emt 0:00:11]} hxg5 {[%emt 0:00:47]} 36. Rxf8+ {[%emt 0:00:06]} Rxf8 {[%emt 0:00:17]} 37. Nf3 {[%emt 0:00:29]} Rf4 {[%emt 0:01:04]} 38. Nf6 {[%emt 0:05:06]} Rf5 {[%emt 0:02:52]} 39. Rf1 {[%emt 0:06:35]} g4 {[%emt 0:00:29]} 40. Nh4 {[%emt 0:00:00]} Rxf1+ {[%emt 0:00:00]} 41. Kxf1 {[%emt 0:01:42]} g3 {[%emt 0:14:03]} 42. Qf4 {[%emt 0:05:54]} a6 {[%emt 0:01:18]} 43. Ke2 {[%emt 0:01:27]} Na1 {[%emt 0:06:37]} 44. Kf3 {[%emt 0:06:45]} Nc2 {[%emt 0:03:00]} 45. Ke2 {[%emt 0:04:45]} Na1 {[%emt 0:02:05]} 46. Kf3 {[%emt 0:08:37]} Nc2 {[%emt 0:00:05]} 47. Qxg3 {[%emt 0:01:04]} Qh6 {[%emt 0:01:15]} 48. Qf2 {[%emt 0:02:56]} Qc1 {[%emt 0:00:45]} 49. Kg4 {[%emt 0:01:07]} Qxb2 {[%emt 0:02:37]} 50. Qd2 {[%emt 0:01:57]} Qb3 {[%emt 0:01:17]} 51. Kh5 {[%emt 0:00:50]} Nxa3 {[%emt 0:00:18]} 52. g4 {[%emt 0:00:15]} Nb1 {[%emt 0:02:11]} 53. Qh6 {[%emt 0:00:01]} Ka7 {[%emt 0:00:27]} 54. Qf8 {[%emt 0:00:36]} Nc6 {[%emt 0:00:50]} 55. g5 {[%emt 0:01:12]} Qd1+ {[%emt 0:00:32]} 56. Ng4 {[%emt 0:00:41]} Nxc3 {[%emt 0:00:50]} 57. Qc5+ {[%emt 0:01:08]} Ka8 {[%emt 0:00:13]} 58. g6 {[%emt 0:00:37]} Ne4 {[%emt 0:00:49]} 59. Qf8+ {[%emt 0:00:02]} Ka7 {[%emt 0:00:13]} 60. g7 {[%emt 0:01:04]} c3 {[%emt 0:01:15]} 61. g8=Q {[%emt 0:00:10]} c2 {[%emt 0:00:01]} 62. Qa8+ {[%emt 0:00:41]} Kb6 {[%emt 0:00:01]} 63. Qg7 {[%emt 0:00:43]} Ng3+ {[%emt 0:00:33]} 64. Kh6 {[%emt 0:00:04]} c1=Q+ {[%emt 0:00:22]} 65. Kh7 {[%emt 0:00:40]} Qb1+ {[%emt 0:01:15]} 66. Ng6 {[%emt 0:00:39]} Ka5 {[%emt 0:00:32]} 67. Nf6 {[%emt 0:00:38]} Qh1+ {[%emt 0:00:35]} 68. Kg8 {[%emt 0:00:21]} Nf5 {[%emt 0:00:32]} 69. Qc7+ {[%emt 0:00:37]} Qb6 {[%emt 0:00:07]} 70. Qaxb7 {[%emt 0:00:09]} Qhb1 {[%emt 0:00:38]} 71. Qbxc6 {[%emt 0:00:39]} Nxd4 {[%emt 0:00:54]} 72. Qc5+ {[%emt 0:00:28]} Ka4 {[%emt 0:00:22]} 73. Q5xb6 Qxg6+ {[%emt 0:00:06]} 74. Qg7 {[%emt 0:00:13]} 1-0

[Event "FIDE WYCC Open U14 2023"]
[Site "Montesilvano"]
[Date "2023.11.20"]
[Round "7.28"]
[White "Farias, David Nuno M E"]
[Black "Pleschke, Julius Jonas"]
[Result "1/2-1/2"]
[ECO "B47"]
[WhiteElo "2149"]
[BlackElo "2024"]
[Annotator "RC"]
[PlyCount "129"]
[EventDate "2023.11.13"]
[EventType "swiss"]
[EventCountry "ITA"]
[SourceTitle "playchess.com"]
[Source "ChessBase"]
[SourceQuality "1"]
[TimeControl "40/5400+30:1800+30"]

1. e4 {[%emt 0:00:07]} c5 {[%emt 0:00:05]} 2. Nf3 {[%emt 0:00:28]} e6 {[%emt 0:00:09]} 3. d4 {[%emt 0:00:20]} cxd4 {[%emt 0:00:06]} 4. Nxd4 {[%emt 0:00:05]} Nc6 {[%emt 0:00:07]} 5. Nc3 {[%emt 0:01:07]} Qc7 {[%emt 0:00:09]} 6. g3 {[%emt 0:00:52]} a6 {[%emt 0:00:22]} 7. Bg2 {[%emt 0:00:11]} Nf6 {[%emt 0:00:11]} 8. O-O {[%emt 0:00:29]} Nxd4 {[%emt 0:00:20]} 9. Qxd4 {[%emt 0:00:11]} Bc5 {[%emt 0:01:12]} 10. Qd1 {[%emt 0:07:44]} h6 {[%emt 0:25:39]} 11. e5 {[%emt 0:28:28]} Qxe5 {[%emt 0:19:03]} 12. Bf4 {[%emt 0:02:05]} Qf5 {[%emt 0:04:43]} 13. Re1 {[%emt 0:21:13]} Be7 {[%emt 0:16:40]} 14. Na4 {[%emt 0:07:09]} Qa5 {[%emt 0:07:16]} 15. c4 {[%emt 0:01:15]} d6 {[%emt 0:04:57]} 16. b4 {[%emt 0:05:58]} Qd8 {[%emt 0:05:06]} 17. c5 {[%emt 0:05:22]} d5 {[%emt 0:01:50]} 18. Nb6 {[%emt 0:00:43]} Bd7 {[%emt 0:00:07]} 19. Nxa8 {[%emt 0:02:39]} Qxa8 {[%emt 0:00:02]} 20. Qd4 {[%emt 0:02:40]} O-O {[%emt 0:00:51]} 21. Be5 {[%emt 0:02:16]} Qd8 {[%emt 0:04:37]} 22. Bf1 {[%emt 0:04:03]} Bc6 {[%emt 0:01:41]} 23. Bd3 {[%emt 0:02:19]} Ne8 {[%emt 0:01:29]} 24. Bc2 {[%emt 0:02:54]} Bb5 {[%emt 0:01:58]} 25. a4 {[%emt 0:00:54]} Bc4 {[%emt 0:00:02]} 26. Qg4 {[%emt 0:01:06]} Nf6 {[%emt 0:02:15]} 27. Qf3 {[%emt 0:00:32]} a5 {[%emt 0:00:39]} 28. Bc3 {[%emt 0:00:46]} axb4 {[%emt 0:00:57]} 29. Bxb4 {[%emt 0:00:01]} Qc7 {[%emt 0:00:46]} 30. Bd3 {[%emt 0:00:49]} Bxc5 {[%emt 0:01:03]} 31. Bxc5 {[%emt 0:00:11]} Qxc5 {[%emt 0:00:22]} 32. Rec1 {[%emt 0:00:35]} b5 {[%emt 0:00:42]} 33. axb5 {[%emt 0:00:37]} Qxb5 {[%emt 0:00:07]} 34. Rab1 {[%emt 0:00:47]} Qa6 {[%emt 0:01:04]} 35. Bxc4 {[%emt 0:00:18]} dxc4 {[%emt 0:00:00]} 36. Qf4 {[%emt 0:00:43]} Rc8 {[%emt 0:01:01]} 37. Rb8 {[%emt 0:00:09]} c3 {[%emt 0:00:46]} 38. Qc7 {[%emt 0:00:39]} Rxb8 {[%emt 0:00:21]} 39. Qxb8+ {[%emt 0:00:03]} Kh7 {[%emt 0:00:27]} 40. Qb1+ {[%emt 0:00:00]} g6 {[%emt 0:00:00]} 41. Rxc3 {[%emt 0:02:49]} Nd5 {[%emt 0:05:06]} 42. Rb3 {[%emt 0:02:11]} Qc4 {[%emt 0:12:11]} 43. Qb2 {[%emt 0:04:02]} Qe4 {[%emt 0:09:27]} 44. Rb8 {[%emt 0:06:36]} Qe1+ {[%emt 0:02:01]} 45. Kg2 {[%emt 0:00:33]} Qc3 {[%emt 0:00:54]} 46. Qe2 {[%emt 0:11:22]} Kg7 {[%emt 0:01:17]} 47. h3 {[%emt 0:00:45]} h5 {[%emt 0:00:55]} 48. Qb5 {[%emt 0:03:20]} Ne7 {[%emt 0:01:34]} 49. Kg1 {[%emt 0:02:17]} Qa1+ {[%emt 0:00:32]} 50. Kh2 {[%emt 0:00:32]} Qd4 {[%emt 0:00:19]} 51. Kg2 {[%emt 0:01:29]} Qd5+ {[%emt 0:00:51]} 52. Qxd5 {[%emt 0:00:25]} Nxd5 {[%emt 0:00:03]} 53. Kf3 {[%emt 0:00:52]} Kf6 {[%emt 0:00:34]} 54. Ke4 {[%emt 0:00:44]} Nc3+ {[%emt 0:00:45]} 55. Kd4 {[%emt 0:00:23]} Nd5 {[%emt 0:00:44]} 56. Rb7 {[%emt 0:00:45]} Ne7 {[%emt 0:01:18]} 57. Ke4 {[%emt 0:00:31]} Nf5 {[%emt 0:00:31]} 58. Rd7 {[%emt 0:00:22]} Ne7 {[%emt 0:00:37]} 59. f4 {[%emt 0:00:39]} Nd5 {[%emt 0:00:33]} 60. Ra7 {[%emt 0:00:32]} Nc3+ {[%emt 0:00:20]} 61. Kd3 {[%emt 0:00:12]} Nd5 {[%emt 0:00:05]} 62. Rb7 {[%emt 0:00:24]} h4 {[%emt 0:00:22]} 63. gxh4 {[%emt 0:00:43]} Nxf4+ {[%emt 0:00:07]} 64. Ke4 {[%emt 0:00:34]} Nh5 {[%emt 0:00:18]} 65. Kf3 {[%emt 0:00:34]} 1/2-1/2